bitfinex/quotes_ETHUSD_20260203
["timestamp","ask_amount","ask_price","bid_price","bid_amount"]
[1770130063017,0.92726909,2296.4,2294.7,0.913]
[1770130063211,0.11557841,2296.2,2294.7,1.8368]
[1770130063434,0.01317841,2295.9,2294.7,1.468]
[1770130063735,1.08899246,2295.7,2294.7,1.468]
[1770130063950,1.08899246,2295.7,2294.7,2.55745294]
[1770130064102,1.08899246,2295.7,2294.7,1.468]
[1770130064309,0.54449623,2295.6,2294.7,1.11]
[1770130064510,1.45677619,2295.6,2294.6,1.11]
[1770130064810,1.02785837,2295.5,2294.6,1.11]
[1770130065043,0.01317841,2295.0,2294.6,1.11]
[1770130065205,0.01317841,2295.0,2294.5,1e-08]
[1770130065409,0.01317841,2294.8,2294.2,0.555]
[1770130065607,0.01317841,2294.8,2293.1,1.665]
[1770130065608,1.08994201,2293.7,2293.1,1.665]
[1770130065830,0.54760669,2293.7,2293.1,1.665]
[1770130066041,0.01317841,2293.7,2293.1,1.665]
[1770130066512,0.01317841,2293.7,2292.8,1.11]
[1770130066513,0.01317841,2293.1,2292.8,1.11]
[1770130066707,0.01317841,2293.2,2292.5,0.555]
[1770130067325,0.01317841,2293.1,2292.5,0.555]
[1770130067528,0.01317841,2294.0,2292.5,2.20050754]
[1770130067731,1.53447043,2294.4,2292.5,2.20050754]
[1770130067732,1.08945027,2294.8,2292.8,12.14592487]
[1770130067918,4.35682412,2295.3,2293.0,12.13274646]
[1770130068124,0.11557841,2295.1,2293.2,12.13274646]
[1770130068329,0.01317841,2294.9,2293.3,0.913]
[1770130068530,0.54449623,2295.6,2293.6,12.13274646]
[1770130068838,1.08894503,2295.8,2294.0,12.14592487]
[1770130069040,1.08866051,2296.4,2294.3,12.14592487]
[1770130069204,1.08866051,2296.4,2294.6,12.13274646]
[1770130069550,1.08866051,2296.4,2294.7,13.04574646]
[1770130069835,1.08866051,2296.4,2294.9,1.08937208]
[1770130069836,1.63299077,2296.4,2294.9,1.08937208]
[1770130070034,1.64616918,2296.4,2294.9,1.08937208]
[1770130070333,0.01317841,2296.0,2294.8,2.39397864]
[1770130070705,1.63299077,2296.4,2294.8,2.94897864]
[1770130070906,1.63299077,2296.4,2294.8,15.1087801]
[1770130071106,1.08866051,2296.4,2294.9,13.59917464]
[1770130071717,1.08837614,2297.0,2295.3,12.15980146]
[1770130072019,0.0011,2297.6,2295.7,5.79280441]
[1770130072230,1.08921017,2297.6,2295.8,13.66657815]
[1770130072545,0.01317841,2297.5,2295.8,12.74039974]
[1770130072747,0.01317841,2297.2,2295.8,12.74039974]
[1770130073039,0.01317841,2297.2,2295.8,0.555]
[1770130073040,0.01317841,2297.0,2295.8,0.555]
[1770130073237,0.01317841,2296.7,2295.8,0.555]
[1770130073444,0.01317841,2296.3,2295.8,0.555]
[1770130073606,0.01317841,2296.2,2295.8,0.555]
[1770130073811,1.10196656,2296.2,2295.8,0.555]
[1770130074019,1.10196656,2296.2,2295.8,1.11]
[1770130074321,0.01317841,2296.0,2295.1,0.913]
[1770130074509,0.01317841,2295.8,2295.1,0.913]
[1770130074710,0.01317841,2295.8,2294.9,0.555]
[1770130075139,0.01317841,2295.8,2294.9,1.11]
[1770130075840,1.0890399,2295.6,2294.9,1.11]
[1770130076137,1.0890399,2295.6,2294.9,1.665]
[1770130076338,0.01317841,2295.3,2294.9,1.665]
[1770130076638,0.01317841,2295.4,2294.9,1.665]
[1770130077344,1.08902731,2295.7,2294.9,0.555]
[1770130077747,1.08880275,2296.1,2294.9,1.86431044]
[1770130077960,1.08866051,2296.4,2294.9,13.58254639]
[1770130078444,1.10183892,2296.4,2294.9,14.13754639]
[1770130078610,1.08866051,2296.4,2294.9,14.13754639]
[1770130078813,0.01317841,2296.2,2295.1,11.71823595]
[1770130079315,1.08866051,2296.4,2295.1,11.71823595]
[1770130079517,1.08866051,2296.4,2295.1,12.27323595]
[1770130080018,1.10183892,2296.4,2295.2,1.08922969]
[1770130080635,0.01317841,2296.8,2295.2,14.27546564]
[1770130080831,0.01317841,2296.5,2295.3,1.91875135]
[1770130081029,1.08830568,2297.2,2295.3,13.6369873]
[1770130081318,0.0011,2297.6,2296.1,11.71823595]
[1770130081544,0.0011,2297.6,2296.3,11.71823595]
[1770130081746,1.08919414,2297.6,2296.4,0.55581841]
[1770130081929,0.0011,2297.6,2296.5,12.80684905]
[1770130082146,0.01317841,2297.3,2296.2,0.913]
[1770130082542,0.01317841,2296.9,2296.1,0.555]
[1770130082743,0.01317841,2296.8,2296.2,0.555]
[1770130083043,0.01317841,2296.7,2296.1,1e-08]
[1770130083365,0.01317841,2296.7,2295.1,0.555]
[1770130083366,0.01317841,2296.2,2295.1,0.555]
[1770130083533,0.01317841,2295.6,2295.1,0.555]
[1770130083734,0.01317841,2295.9,2295.2,1.11]
[1770130083936,1.08868477,2296.4,2295.2,13.9174256]
[1770130084143,1.63301427,2296.4,2295.2,15.80038334]
[1770130084446,1.08828138,2297.3,2295.6,11.73141436]
[1770130084648,0.92505106,2297.2,2295.6,11.71823595]
[1770130084960,0.11557841,2297.2,2295.6,12.27323595]
[1770130085161,0.01317841,2296.5,2295.6,0.555]
[1770130085333,0.01317841,2296.7,2295.6,0.555]
[1770130085540,0.91219172,2296.6,2295.6,0.555]
[1770130085792,0.01317841,2297.0,2295.6,12.27323595]
[1770130086076,1.10150717,2297.1,2295.8,11.71823595]
[1770130086451,1.08832736,2297.2,2296.0,11.71823595]
[1770130086981,1.10150577,2297.2,2296.0,0.555]
[1770130087197,0.01317841,2296.9,2296.0,0.555]
[1770130087883,1.0886131,2296.5,2296.0,0.555]
[1770130088082,1.0886131,2296.5,2296.0,1.11]
[1770130088298,2.06968274,2296.5,2296.0,1.11]
[1770130088487,2.06968274,2296.5,2295.6,2.19900901]
[1770130088488,0.01317841,2296.2,2295.6,1.11]
[1770130088790,0.98106964,2296.5,2295.8,1.08891078]
[1770130088987,0.98106964,2296.5,2295.6,1.11]
[1770130088988,0.01317841,2296.4,2295.6,1.11]
[1770130089288,0.01317841,2295.8,2294.7,11.71823595]
[1770130089474,0.01317841,2296.1,2295.0,1.08932127]
[1770130089685,0.1024,2296.4,2295.0,1.80048324]
[1770130089899,4.35426282,2296.8,2295.0,13.51871919]
[1770130090105,0.91254352,2296.7,2295.0,13.51871919]
[1770130090395,0.01317841,2296.0,2295.0,1.26616197]
[1770130090593,0.01317841,2296.0,2295.0,0.555]
[1770130090762,0.1024,2296.4,2295.0,0.555]
[1770130090964,0.01317841,2296.0,2295.0,0.555]
[1770130091189,0.01317841,2295.8,2295.0,0.555]
[1770130091397,0.01317841,2295.6,2295.0,1.11]
[1770130091597,0.01317841,2296.0,2295.0,1.11]
[1770130091598,0.01317841,2296.4,2295.0,1.11]
[1770130091900,0.79064393,2296.2,2295.0,13.91755735]
[1770130092099,1.08855012,2296.7,2295.2,11.73141436]
[1770130092404,1.08832876,2297.1,2295.4,11.71823595]
[1770130092572,1.08832876,2297.1,2295.4,12.63123595]
[1770130092895,1.10150717,2297.1,2295.4,12.63123595]
[1770130093095,0.01317841,2296.8,2295.4,0.913]
[1770130093269,0.01317841,2296.5,2295.4,0.913]
[1770130093460,0.01317841,2296.7,2295.4,0.913]
[1770130093461,0.01317841,2296.8,2295.4,1.468]
[1770130093669,0.0011,2297.4,2296.1,11.71823595]
[1770130093891,0.0011,2297.4,2296.3,1.08870792]
[1770130094102,0.0011,2297.4,2296.2,13.98010904]
[1770130094283,0.0011,2297.4,2296.2,2.26189227]
[1770130094602,0.0011,2297.4,2296.2,14.53512822]
[1770130094768,0.0011,2297.4,2296.3,13.60726942]
[1770130095290,0.0011,2297.4,2296.3,1.88903347]
[1770130095491,0.0011,2297.4,2296.2,1.64374721]
[1770130095680,0.0011,2297.4,2296.2,2.19874704]
[1770130095885,1.08828138,2297.2,2296.2,2.19872804]
[1770130096199,1.08823992,2297.3,2296.2,2.19872804]
[1770130096406,0.0011,2297.4,2296.2,13.91696399]
[1770130096599,0.0011,2297.4,2296.4,11.71823595]
[1770130096805,0.0011,2297.4,2296.4,12.63123595]
[1770130096975,1.08916383,2297.7,2296.5,11.71823595]
[1770130097308,0.01317841,2297.1,2296.2,1.665]
[1770130097508,0.01317841,2296.8,2296.2,1.665]
[1770130097882,1.0885183,2296.7,2296.2,2.22]
[1770130098081,1.08844865,2296.9,2296.2,2.22]
[1770130098288,1.08833848,2297.1,2296.2,3.30873885]
[1770130098484,1.08831354,2297.2,2296.2,4.60193094]
[1770130098796,0.01317841,2296.9,2296.2,2.09582693]
[1770130099109,0.01317841,2296.9,2296.0,0.001]
[1770130099110,0.01317841,2296.3,2295.4,0.555]
[1770130099306,0.01317841,2296.3,2295.2,0.555]
[1770130099307,0.01317841,2295.7,2295.2,0.555]
[1770130099507,0.01317841,2295.8,2295.2,0.555]
[1770130100010,1.0890399,2295.6,2295.2,1.11]
[1770130100176,1.0890399,2295.6,2295.0,1.11]
[1770130100378,1.14401305,2295.7,2295.0,2.19929752]
[1770130100588,4.3556085,2295.9,2295.0,1.11]
[1770130100906,0.01317841,2295.8,2295.0,1.11]
[1770130101088,4.36878691,2295.9,2295.0,1.665]
[1770130101288,6.60981337,2295.9,2295.0,1.665]
[1770130101484,4.35540069,2296.1,2295.0,1.665]
[1770130101703,0.01317841,2295.9,2295.0,1.665]
[1770130101878,1.0888976,2295.9,2295.0,2.75428568]
[1770130102080,1.10207601,2295.9,2295.0,2.22]
[1770130102279,0.01317841,2295.8,2295.0,3.30930958]
[1770130102480,1.10207601,2295.9,2295.0,3.30930958]
[1770130102481,1.0888976,2295.9,2295.0,3.80684054]
[1770130102907,1.0888976,2295.9,2295.0,2.71753096]
[1770130103111,0.01317841,2295.8,2295.0,2.22]
[1770130103330,5.51262113,2296.0,2295.0,2.22]
[1770130103331,1.14401305,2296.0,2295.1,11.80199991]
[1770130103513,0.01317841,2296.0,2295.0,2.775]
[1770130103820,0.01317841,2295.6,2295.0,2.775]
[1770130103979,0.01317841,2295.6,2294.9,1.11]
[1770130103980,0.01317841,2295.0,2293.9,11.80199991]
[1770130104191,0.93014192,2294.9,2293.9,11.80199991]
[1770130104376,0.91692806,2294.8,2294.0,1.08977568]
[1770130104601,0.91687681,2294.7,2293.9,13.09118471]
[1770130104781,0.01317841,2294.8,2293.9,1.2891848]
[1770130105014,0.91687888,2294.7,2293.6,1.08996844]
[1770130105178,0.91687888,2294.7,2293.7,1.08991837]
[1770130105179,0.01317841,2294.7,2293.7,1.08991837]
[1770130105379,0.01317841,2294.6,2293.7,0.555]
[1770130105586,0.01317841,2294.3,2293.7,0.555]
[1770130105804,0.91575662,2294.2,2293.7,0.555]
[1770130106000,1.08970447,2294.2,2293.7,0.555]
[1770130106205,2.07307418,2294.2,2293.3,0.555]
[1770130106405,2.08625259,2294.2,2293.3,1.11]
[1770130106617,2.07307418,2294.2,2293.3,1.11]
[1770130106818,0.01317841,2293.9,2293.3,1.11]
[1770130107131,0.01317841,2293.8,2293.3,1.11]
[1770130107654,0.01317841,2293.7,2293.0,0.001]
[1770130107807,0.01317841,2294.1,2293.0,0.001]
[1770130107808,1.14401305,2294.4,2293.0,12.89326889]
[1770130108008,1.08964405,2294.4,2293.3,1.09013212]
[1770130108254,0.01317841,2294.1,2293.1,1.72543679]
[1770130108409,0.01317841,2294.1,2293.0,1.0912532]
[1770130108604,0.01317841,2294.3,2293.2,1.09013384]
[1770130108847,0.01317841,2294.3,2293.2,1.09017663]
[1770130109064,1.08946703,2294.8,2293.2,12.89217654]
[1770130109364,0.01317841,2294.6,2293.2,12.89217654]
[1770130109507,0.01317841,2294.6,2293.3,13.52728943]
[1770130109709,1.08946703,2294.8,2293.3,14.08228943]
[1770130110008,0.11557841,2294.9,2293.5,11.80199991]
[1770130110209,1.14401305,2295.4,2293.7,11.80199991]
[1770130110438,1.08906443,2295.6,2293.7,11.81517832]
[1770130110648,2.23289925,2296.0,2293.9,11.80199991]
[1770130110847,1.08873597,2296.3,2294.5,11.81517832]
[1770130111006,0.01317841,2296.3,2294.8,11.80199991]
[1770130111205,0.01317841,2296.4,2295.0,11.80199991]
[1770130111456,0.01317841,2296.6,2295.0,11.80199991]
[1770130111746,0.91152031,2296.5,2295.0,11.80199991]
[1770130111913,0.01317841,2296.5,2295.0,12.35699991]
[1770130112128,1.10179151,2296.5,2295.2,11.80199991]
[1770130112334,2.07228771,2296.5,2295.3,13.09112762]
[1770130112762,0.01317841,2296.2,2295.0,0.555]
[1770130112945,0.01317841,2296.2,2295.3,0.555]
[1770130113332,0.0011,2295.7,2295.3,0.555]
[1770130113929,1.0890399,2295.6,2295.3,0.555]
[1770130114129,1.10221831,2295.6,2295.0,0.555]
[1770130114363,1.0890399,2295.6,2295.0,0.555]
[1770130114565,0.01317841,2295.5,2295.0,0.555]
[1770130114751,2.07189127,2295.6,2295.0,0.555]
[1770130114953,0.01317841,2295.5,2295.0,0.555]
[1770130115162,2.07189127,2295.6,2295.0,1.11]
[1770130115768,0.01317841,2295.2,2294.2,1.08970447]
[1770130115952,0.01317841,2295.3,2294.2,1.08970447]
[1770130116262,0.01317841,2295.1,2294.2,0.555]
[1770130116449,0.54856837,2295.1,2294.2,0.555]
[1770130116968,0.01317841,2294.9,2294.2,0.555]
[1770130117266,0.01317841,2294.9,2294.2,1.11]
[1770130117472,0.54856837,2295.1,2294.2,1.11]
[1770130117637,1.1024081,2295.2,2294.2,1.11]
[1770130117840,0.01317841,2294.7,2293.7,0.555]
[1770130118181,0.01317841,2294.7,2293.3,0.555]
[1770130118182,4.37180631,2294.4,2293.3,0.555]
[1770130118385,0.01317841,2294.2,2293.7,0.555]
[1770130118679,0.01317841,2293.9,2293.3,0.555]
[1770130118838,0.54417818,2294.2,2293.3,12.48819137]
[1770130119038,0.01317841,2293.9,2293.3,0.555]
[1770130119261,0.54417818,2294.2,2293.3,1.11]
[1770130119462,0.53099977,2294.2,2293.3,14.13329659]
[1770130119768,0.01317841,2294.3,2293.3,14.13332102]
[1770130119966,1.08931245,2295.1,2293.4,11.93319137]
[1770130120267,4.47268703,2295.3,2293.6,11.93319137]
[1770130120456,0.01317841,2294.8,2293.7,1.30232284]
[1770130120775,0.01317841,2294.8,2293.6,11.93319137]
[1770130120776,0.01317841,2294.5,2293.6,11.93319137]
[1770130120988,0.01317841,2294.4,2293.4,0.555]
[1770130121138,0.01317841,2294.3,2293.4,0.555]
[1770130121537,0.01317841,2294.3,2293.4,1.11]
[1770130121740,3.28707341,2294.1,2293.0,0.556]
[1770130121939,3.28707341,2294.1,2292.3,11.93319137]
[1770130121940,0.01317841,2293.2,2292.3,11.93319137]
[1770130122242,1.10340561,2293.1,2292.4,1e-08]
[1770130122651,1.10340561,2293.1,2292.4,0.55500001]
[1770130123175,0.01317841,2293.0,2291.8,1.09084178]
[1770130123339,0.01317841,2293.0,2291.5,0.0018]
[1770130123340,0.01317841,2292.4,2291.5,0.0018]
[1770130123550,0.01317841,2292.3,2291.5,0.5568]
[1770130123756,0.01317841,2292.0,2291.5,0.5568]
[1770130124007,0.54906712,2293.0,2291.5,13.44974572]
[1770130124165,0.54906712,2293.0,2291.6,1.78136995]
[1770130124166,1.1035007,2292.9,2291.6,1.78136995]
[1770130124354,1.09032229,2292.9,2291.6,13.58336986]
[1770130124733,1.09032229,2292.9,2291.6,2.33636995]
[1770130124734,0.01317841,2292.5,2291.6,2.33636995]
[1770130124987,0.01317841,2292.7,2291.6,0.555]
[1770130125153,0.01317841,2292.6,2291.6,0.555]
[1770130125555,0.01317841,2292.2,2291.6,0.555]
[1770130125755,0.01317841,2292.1,2291.6,1.11]
[1770130126018,0.01317841,2292.2,2291.6,1.11]
[1770130126298,0.01317841,2292.5,2291.6,1.11]
[1770130126299,0.11557841,2292.5,2291.6,1.11]
[1770130126464,0.01317841,2292.3,2291.6,1.11]
[1770130126654,0.01317841,2292.2,2291.6,1.11]
[1770130126854,0.01317841,2292.1,2290.8,0.914]
[1770130127086,0.01317841,2292.0,2291.0,1.09121555]
[1770130127293,0.01317841,2292.0,2290.8,5.27927399]
[1770130127294,0.01317841,2291.9,2290.8,2.00531777]
[1770130127599,0.01317841,2291.3,2290.5,1.09145816]
[1770130127754,0.01317841,2291.5,2290.5,0.001]
[1770130127958,0.01317841,2290.9,2290.5,0.001]
[1770130128262,0.01317841,2290.9,2289.8,5.28103782]
[1770130128263,0.01317841,2290.7,2289.8,0.914]
[1770130128456,1.09129378,2290.9,2289.8,3.38656785]
[1770130128657,1.10416684,2291.5,2289.9,11.80199991]
[1770130128885,0.1024,2291.4,2289.9,11.80199991]
[1770130129080,0.1024,2291.4,2289.9,12.35699991]
[1770130129288,0.01317841,2291.3,2289.9,12.35699991]
[1770130129486,0.1024,2291.4,2290.1,11.80199991]
[1770130129683,0.01317841,2291.3,2290.1,11.80199991]
[1770130129890,1.09084562,2291.8,2290.1,11.80199991]
[1770130130087,1.09084562,2291.8,2290.3,11.80199991]
[1770130130292,1.09084562,2291.8,2290.1,0.555]
[1770130130293,0.01317841,2291.2,2290.1,0.555]
[1770130130583,0.01317841,2291.1,2290.1,0.555]
[1770130130792,0.01317841,2291.0,2290.1,0.77516769]
[1770130131088,0.01317841,2290.8,2290.1,1.11]
[1770130131265,0.01317841,2290.6,2289.9,0.555]
[1770130131466,0.01317841,2290.9,2289.9,0.555]
[1770130131668,0.11557841,2291.7,2290.1,1.09164623]
[1770130131992,0.11557841,2291.7,2290.1,13.95178591]
[1770130132164,0.1024,2291.3,2290.3,1.09156005]
[1770130132359,0.11557841,2291.3,2290.2,2.92345357]
[1770130132562,0.11557841,2291.3,2290.2,1.83184607]
[1770130132807,0.01317841,2290.9,2290.1,0.555]
[1770130133161,0.01317841,2290.8,2290.1,0.555]
[1770130133489,0.40219298,2289.9,2289.5,0.001]
[1770130133670,0.40219298,2289.9,2288.9,12.88039918]
[1770130133865,0.40219298,2289.9,2289.2,1.09206897]
[1770130134066,1.49396671,2289.9,2288.9,12.88035149]
[1770130134265,1.49396671,2289.9,2289.3,0.556]
[1770130135479,1.49396671,2289.9,2289.3,1.111]
[1770130135764,1.49396671,2289.9,2288.9,0.001]
[1770130135765,0.1024,2289.8,2288.9,0.001]
[1770130136187,1.09184609,2289.7,2288.9,0.001]
[1770130136388,1.1050245,2289.7,2288.6,0.001]
[1770130136574,0.1024,2289.6,2288.3,12.88067742]
[1770130136774,0.01317841,2289.4,2288.3,1.78159113]
[1770130136974,0.65988089,2289.6,2288.3,12.88067687]
[1770130137687,0.1024,2289.6,2288.3,13.43567687]
[1770130138066,1.09184609,2289.7,2288.3,13.43567687]
[1770130138365,0.01317841,2289.7,2288.5,11.7871715]
[1770130138565,0.11557841,2289.7,2288.5,11.7871715]
[1770130138769,0.01317841,2289.5,2288.5,0.555]
[1770130139009,0.01317841,2289.6,2288.5,0.555]
[1770130139304,0.11557841,2289.7,2288.5,0.555]
[1770130139499,0.01317841,2289.5,2288.5,0.555]
[1770130139701,0.76479095,2289.7,2288.5,0.555]
[1770130139871,0.76479095,2289.7,2288.5,12.8971715]
[1770130139872,0.1024,2289.7,2288.5,12.8971715]
[1770130140068,0.40219324,2289.6,2289.3,0.001]
[1770130140299,1.49409385,2289.6,2288.7,11.7871715]
[1770130140465,1.49409385,2289.6,2288.8,1.28795424]
[1770130140671,1.49409385,2289.6,2288.5,1.11]
[1770130140903,1.49409385,2289.6,2288.5,1.665]
[1770130140904,0.11557841,2289.5,2288.5,1.665]
[1770130141072,0.01317841,2289.2,2288.3,0.556]
[1770130141269,1.50727226,2289.6,2288.6,11.7871715]
[1770130141270,0.22060745,2289.6,2288.6,11.7871715]
[1770130141576,1.31250424,2289.6,2288.8,11.7871715]
[1770130141782,0.22060745,2289.6,2288.8,11.7871715]
[1770130141991,0.22060745,2289.6,2288.8,12.3421715]
[1770130141992,1.31250335,2289.6,2288.8,12.3421715]
[1770130142167,0.1024,2289.5,2288.8,0.555]
[1770130142389,0.1024,2289.5,2288.3,0.556]
[1770130142390,0.01317841,2289.4,2288.3,0.556]
[1770130142591,0.01317841,2288.7,2287.7,0.001]
[1770130142902,0.01317841,2289.1,2287.7,0.001]
[1770130142903,0.1024,2289.5,2287.7,14.05978269]
[1770130143106,0.1024,2289.5,2287.9,11.7871715]
[1770130143269,0.1024,2289.5,2288.0,11.7871715]
[1770130143466,0.01317841,2289.0,2288.0,11.7871715]
[1770130143697,0.01317841,2289.3,2288.0,12.96588865]
[1770130143866,4.61432383,2289.8,2288.0,12.96588865]
[1770130144075,0.01317841,2289.4,2288.0,12.96588865]
[1770130144275,0.1024,2289.2,2288.0,13.52088865]
[1770130144674,1.09203686,2289.3,2288.0,14.61351729]
[1770130145000,1.09203686,2289.3,2288.2,11.7871715]
[1770130145303,0.22060745,2289.1,2288.4,11.7871715]
[1770130146408,1.09175073,2289.9,2288.6,11.7871715]
[1770130147087,1.09175073,2289.9,2288.6,12.7031715]
[1770130147472,0.1024,2289.8,2288.6,12.3421715]
[1770130147683,0.67167883,2289.8,2288.6,12.3421715]
[1770130148076,0.67167883,2289.8,2288.4,0.555]
[1770130148272,1.09208457,2289.2,2288.4,1e-08]
[1770130148498,1.09208457,2289.2,2288.4,0.55500001]
[1770130149183,0.1024,2289.6,2288.4,0.55500001]
[1770130149594,0.7273515,2289.6,2288.4,1.11000001]
[1770130149985,1.1050245,2289.7,2288.4,12.89717151]
[1770130149986,1.09184609,2289.7,2288.4,12.89717151]
[1770130150174,1.14511305,2290.6,2288.6,0.01317841]
[1770130150374,1.09151239,2290.5,2289.1,0.01317841]
[1770130150604,1.09151239,2290.5,2289.1,11.80034991]
[1770130150904,1.09151239,2290.5,2289.2,1.18135283]
[1770130151473,1.00922924,2290.4,2289.1,0.555]
[1770130151679,0.1024,2290.4,2289.1,0.555]
[1770130151892,0.1024,2290.4,2289.1,1.11]
[1770130152201,0.90770712,2290.3,2289.1,1.11]
[1770130152400,0.1024,2290.0,2289.1,1.11]
[1770130152601,0.90770712,2289.9,2289.1,1.11]
[1770130153004,0.90770712,2289.9,2289.1,1.665]
[1770130153701,0.1024,2290.0,2289.1,1.665]
[1770130153901,1.09165538,2290.1,2289.1,2.22]
[1770130154200,1.09165538,2290.1,2289.1,15.09930344]
[1770130154399,1.09165538,2290.1,2289.2,1.94678326]
[1770130154400,1.09175073,2289.9,2289.2,1.94678326]
[1770130154601,1.09175073,2289.9,2289.1,2.22]
[1770130154813,0.9106183,2289.8,2289.1,2.22]
[1770130154992,1.09175073,2289.9,2289.1,2.775]
[1770130155192,2.00220663,2289.9,2289.1,2.775]
[1770130155393,0.9104559,2289.8,2289.1,2.775]
[1770130155996,1.52129202,2290.2,2289.1,2.775]
[1770130155997,2.23555446,2290.4,2289.3,11.7871715]
[1770130156212,0.0011,2290.8,2289.7,11.7871715]
[1770130156379,1.09242807,2290.8,2289.8,2.00779841]
[1770130156583,0.0011,2290.8,2289.8,13.79496991]
[1770130156801,0.0011,2290.8,2289.9,13.60339657]
[1770130157001,0.0011,2290.8,2289.9,1.81622507]
[1770130157184,0.0011,2290.8,2289.9,0.555]
[1770130157704,5.509088,2291.0,2289.9,0.555]
[1770130157705,1.09125412,2291.0,2289.9,12.3421715]
[1770130157889,1.09119763,2291.1,2289.9,12.3421715]
[1770130158089,2.23521068,2291.1,2289.9,12.3421715]
[1770130158291,1.09119763,2291.1,2290.1,11.7871715]
[1770130158491,1.09119763,2291.1,2290.2,13.07505895]
[1770130158914,1.09119763,2291.1,2290.3,0.916]
[1770130159222,1.09111093,2291.3,2290.3,1.471]
[1770130159430,5.5083477,2291.4,2290.3,1.471]
[1770130159431,1.14401305,2291.4,2290.3,1.471]
[1770130159595,1.09106991,2291.4,2290.3,13.2581715]
[1770130159785,1.09106991,2291.4,2290.4,13.24177739]
[1770130159981,1.09106991,2291.4,2290.4,1.45460589]
[1770130160217,1.14401305,2291.3,2290.3,1.471]
[1770130160390,1.09104377,2291.4,2290.5,1.09146474]
[1770130160709,2.23543644,2291.6,2290.5,13.7618339]
[1770130160910,0.1024,2291.4,2290.4,0.555]
[1770130161082,1.14444905,2290.8,2289.9,1.11]
[1770130161288,1.14444905,2290.8,2290.0,1.09168017]
[1770130161484,1.14444905,2290.7,2289.9,1.665]
[1770130162188,1.14444905,2290.3,2289.4,0.916]
[1770130162410,1.09165538,2290.1,2289.4,0.916]
[1770130162594,1.09165538,2290.1,2289.4,1.471]
[1770130163204,1.14444905,2290.0,2289.4,0.555]
[1770130163419,1.14444905,2289.7,2289.1,3.33]
[1770130163719,1.14444905,2289.9,2289.1,3.885]
[1770130164315,1.09175073,2289.9,2289.1,3.885]
[1770130164503,2.23619978,2289.9,2289.1,3.885]
[1770130164845,2.23619978,2289.9,2288.6,0.001]
[1770130164846,1.14444905,2289.4,2288.6,0.001]
[1770130164988,1.14444905,2289.3,2288.6,0.001]
[1770130165686,1.14444905,2289.3,2288.6,0.556]
[1770130165891,1.14444905,2289.1,2288.6,0.556]
[1770130166230,2.28467953,2289.5,2288.6,0.556]
[1770130166231,1.14444905,2289.2,2288.6,0.556]
[1770130166396,1.09208457,2289.2,2288.6,0.556]
[1770130166598,1.09205303,2289.3,2288.6,0.556]
[1770130166803,2.23650208,2289.3,2288.6,1.111]
[1770130167097,2.23650208,2289.3,2288.4,1.11100001]
[1770130167098,2.83728239,2289.3,2288.4,1.11100001]
[1770130167295,1.14444905,2289.2,2288.4,1.11100001]
[1770130167699,2.23650208,2289.3,2288.4,1.11100001]
[1770130167913,2.23650208,2289.3,2288.4,2.75844388]
[1770130168220,0.91467044,2289.2,2288.6,1.09235504]
[1770130168384,1.09206475,2289.3,2288.4,14.33636917]
[1770130168595,0.91475723,2289.2,2288.5,1.43363692]
[1770130168802,0.91475723,2289.1,2288.4,14.33636917]
[1770130169001,1.09206475,2289.3,2288.4,14.89136917]
[1770130169197,3.15123051,2289.3,2288.4,2.22100001]
[1770130169432,0.91471671,2289.2,2288.4,2.22100001]
[1770130169600,0.91471671,2289.1,2288.6,1.0923455]
[1770130169801,1.09203424,2289.4,2288.7,0.54619857]
[1770130170007,1.09203424,2289.4,2288.7,0.555]
[1770130171010,1.09197368,2289.5,2288.7,1.64731774]
[1770130171225,1.09197368,2289.5,2288.7,2.20231774]
[1770130171628,1.09197368,2289.5,2288.7,1.11]
[1770130171931,1.09193143,2289.6,2288.7,14.87269196]
[1770130172101,1.09193143,2289.6,2288.8,1.92419846]
[1770130172301,2.61322345,2289.6,2288.7,1.665]
[1770130172501,2.62640186,2289.6,2288.7,1.665]
[1770130172939,1.53447043,2289.1,2288.4,2.22100001]
[1770130173104,1.52129202,2289.3,2288.4,2.22100001]
[1770130173309,0.1024,2289.2,2288.4,3.05360001]
[1770130173907,0.1024,2289.2,2288.4,2.77600001]
[1770130174106,0.11557841,2289.2,2288.2,0.555]
[1770130174422,0.01317841,2289.0,2288.2,1.11]
[1770130174625,1.0922277,2288.9,2288.2,1.11]
[1770130174825,1.0922277,2288.9,2287.7,0.556]
[1770130174826,0.01317841,2288.4,2287.7,0.556]
[1770130175024,1.53447043,2288.5,2287.7,0.556]
[1770130175203,2.28467953,2288.7,2287.7,13.22636916]
[1770130175204,1.52129202,2288.7,2287.7,13.22636916]
[1770130175406,2.61351972,2288.9,2287.8,13.99300608]
[1770130175614,1.0922277,2288.9,2287.8,15.08573401]
[1770130175835,1.10540611,2288.9,2287.8,12.67036916]
[1770130176035,1.53447043,2288.8,2287.7,1.111]
[1770130176245,2.61351972,2288.9,2287.7,13.78136916]
[1770130176435,1.09213227,2289.1,2288.2,1.09255781]
[1770130176633,4.36852911,2289.2,2288.3,1.81332639]
[1770130176837,0.01317841,2289.0,2288.1,13.76297637]
[1770130177158,2.27150112,2290.1,2288.7,12.67036916]
[1770130177313,1.09252264,2290.6,2288.9,12.68354757]
[1770130177515,1.09252264,2290.6,2289.5,12.67036916]
[1770130177516,0.0011,2290.6,2289.5,12.67036916]
[1770130177713,1.09254821,2290.6,2289.5,12.67036916]
[1770130177955,0.0011,2290.6,2289.5,12.67036916]
[1770130178239,1.0925274,2290.6,2289.5,12.67036916]
[1770130178540,0.0011,2290.6,2289.5,12.67036916]
[1770130178740,0.0011,2290.6,2289.7,12.67036916]
[1770130179719,0.0011,2290.6,2289.7,0.555]
[1770130180325,0.01317841,2290.5,2289.7,0.555]
[1770130180844,0.01317841,2290.5,2289.5,0.555]
[1770130180845,0.01317841,2290.2,2289.5,0.555]
[1770130181145,0.01317841,2289.9,2288.9,0.555]
[1770130181646,0.11557841,2290.1,2288.9,1.64719846]
[1770130181647,0.1024,2290.1,2288.9,1.64719846]
[1770130181942,0.9150263,2290.0,2289.2,12.67036916]
[1770130182142,0.1024,2290.3,2289.2,12.67036916]
[1770130182442,0.1024,2290.3,2289.0,4.36864356]
[1770130182443,0.0011,2290.6,2289.8,12.67036916]